fUSD/lending_fUSD_20240114
["ID","MTS","AMOUNT","RATE_DAILY","PERIOD"]
[311569550,1705252250362,-2344.08,0.00030136,2]
[311569551,1705252250372,-1971.59,0.00030136,2]
[311569552,1705252250381,-500.0,0.00030136,2]
[311569553,1705252250391,-500.0,0.00030136,2]
[311569554,1705252250400,-1042.49,0.00030136,2]
[311569555,1705252250409,-268.2127695,0.00030136,2]
[311569556,1705252250419,-500.0,0.00030136,2]
[311569557,1705252250429,-500.0,0.00030136,2]
[311569558,1705252250438,-1099.02,0.00030136,2]
[311569559,1705252250447,-500.0,0.00030136,2]
[311569560,1705252250456,-500.0,0.00030136,2]
[311569561,1705252250466,-1216.07,0.00030136,2]
[311569562,1705252250475,-522.91,0.00030136,2]
[311569563,1705252250485,-600.25,0.00030136,2]
[311569564,1705252250494,-500.0,0.00030136,2]
[311569565,1705252250503,-500.0,0.00030136,2]
[311569566,1705252250544,-1427.33,0.00030136,2]
[311569567,1705252250555,-1427.33,0.00030136,2]
[311569568,1705252250565,-500.0,0.00030136,2]
[311569569,1705252250576,-1427.33,0.00030136,2]
[311569570,1705252250586,-722.24,0.00030136,2]
[311569571,1705252250597,-1123.73,0.00030136,2]
[311569572,1705252250607,-768.64,0.00030136,2]
[311569573,1705252250617,-500.0,0.00030136,2]
[311569574,1705252250627,-529.00150175,0.00030136,2]
[311569575,1705252250638,-500.0,0.00030136,2]
[311569576,1705252250650,-500.0,0.00030136,2]
[311569577,1705252250660,-500.0,0.00030136,2]
[311569578,1705252250671,-500.94064196,0.00030136,2]
[311569579,1705252250681,-500.0,0.00030136,2]
[311569580,1705252250692,-500.0,0.00030136,2]
[311569581,1705252250702,-881.92,0.00030136,2]
[311569582,1705252250713,-625.0,0.00030136,2]
[311569583,1705252250725,-500.0,0.00030136,2]
[311569584,1705252250739,-500.0,0.00030136,2]
[311569585,1705252250749,-500.0,0.00030136,2]
[311569586,1705252250760,-796.46,0.00030136,2]
[311569587,1705252250770,-1228.35,0.00030136,2]
[311569588,1705252250781,-35539.27,0.00030136,2]
[311569589,1705252250791,-501.61716561,0.00030136,2]
[311569590,1705252250802,-500.0,0.00030136,2]
[311569591,1705252250813,-968.5,0.00030136,2]
[311569592,1705252250825,-500.0,0.00030136,2]
[311569593,1705252250835,-500.0,0.00030136,2]
[311569594,1705252250845,-912.91,0.00030136,2]
[311569595,1705252250856,-500.0,0.00030136,2]
[311569596,1705252250866,-753.36,0.00030136,2]
[311569597,1705252250876,-2773.15,0.00030136,2]
[311569598,1705252250887,-500.0,0.00030136,2]
[311569599,1705252250898,-1538.92,0.00030136,2]
[311569600,1705252250909,-500.0,0.00030136,2]
[311569601,1705252250921,-845.72,0.00030136,2]
[311569602,1705252250932,-500.0,0.00030136,2]
[311569603,1705252250942,-500.0,0.00030136,2]
[311569604,1705252250953,-500.0,0.00030136,2]
[311569605,1705252250963,-1360.03,0.00030136,2]
[311569606,1705252250974,-593.33,0.00030136,2]
[311569607,1705252250986,-500.0,0.00030136,2]
[311569608,1705252250996,-500.0,0.00030136,2]
[311569609,1705252251007,-500.0,0.00030136,2]
[311569610,1705252251017,-4393.52,0.00030136,2]
[311569611,1705252251028,-907.99,0.00030136,2]
[311569612,1705252251038,-1000.0,0.00030136,2]
[311569613,1705252251048,-500.0,0.00030136,2]
[311569614,1705252251059,-500.0,0.00030136,2]
[311569615,1705252251071,-500.0,0.00030136,2]
[311569616,1705252251081,-1520.18,0.00030136,2]
[311569617,1705252251092,-500.0,0.00030136,2]
[311569618,1705252251102,-1233.91,0.00030136,2]
[311569619,1705252251111,-500.0,0.00030136,2]
[311569620,1705252251121,-500.0,0.00030136,2]
[311569621,1705252251130,-746.94,0.00030136,2]
[311569622,1705252251140,-1579.37,0.00030136,2]
[311569623,1705252251149,-977.1,0.00030136,2]
[311569624,1705252251160,-500.0,0.00030136,2]
[311569625,1705252251169,-540.78,0.00030136,2]
[311569626,1705252251180,-500.0,0.00030136,2]
[311569627,1705252251190,-500.0,0.00030136,2]
[311569628,1705252251200,-797.54,0.00030136,2]
[311569629,1705252251210,-500.0,0.00030136,2]
[311569630,1705252251220,-500.0,0.00030136,2]
[311569631,1705252251230,-2254.7,0.00030136,2]
[311569632,1705252251240,-2556.16,0.00030136,2]
[311569633,1705252251250,-926.27,0.00030136,2]
[311569634,1705252251260,-2209.2,0.00030136,2]
[311569635,1705252251271,-500.0,0.00030136,2]
[311569636,1705252251281,-500.0,0.00030136,2]
[311569637,1705252251639,-1504.88,0.00030136,2]
[311569638,1705252251651,-500.0,0.00030136,2]
[311569639,1705252251662,-1514.05,0.00030136,2]
[311569640,1705252251672,-500.0,0.00030136,2]
[311569641,1705252251683,-500.0,0.00030136,2]
[311569642,1705252251694,-500.0,0.00030136,2]
[311569643,1705252251705,-500.0,0.00030136,2]
[311569644,1705252251714,-2483.68,0.00030136,2]
[311569645,1705252251727,-574.24,0.00030136,2]
[311569646,1705252251738,-500.0,0.00030136,2]
[311569647,1705252251748,-1690.9,0.00030136,2]
[311569648,1705252251759,-500.0,0.00030136,2]
[311569649,1705252251769,-1018.17,0.00030136,2]
[311569650,1705252251780,-500.0,0.00030136,2]
[311569651,1705252251790,-643.61,0.00030136,2]
[311569652,1705252251800,-500.0,0.00030136,2]
[311569653,1705252251810,-543.2,0.00030136,2]
[311569654,1705252251821,-2697.47,0.00030136,2]
[311569655,1705252251832,-1223.0,0.00030136,2]
[311569656,1705252251842,-847.84,0.00030136,2]
[311569657,1705252251853,-284.41187661,0.00030136,2]
[311569658,1705252251865,-500.0,0.00030136,2]
[311569659,1705252251875,-500.0,0.00030136,2]
[311569660,1705252251885,-3144.48,0.00030136,2]
[311569661,1705252251895,-4195.55,0.00030136,2]
[311569662,1705252251906,-15637.48,0.00030136,2]
[311569663,1705252251916,-500.0,0.00030136,2]
[311569664,1705252251927,-7596.12,0.00030136,2]
[311569665,1705252251937,-500.0,0.00030136,2]
[311569666,1705252251946,-13163.35,0.00030136,2]
[311569667,1705252251956,-2237.23,0.00030136,2]
[311569668,1705252251966,-500.0,0.00030136,2]
[311569669,1705252251976,-500.0,0.00030136,2]
[311569670,1705252251989,-500.0,0.00030136,2]
[311569671,1705252251999,-500.0,0.00030136,2]
[311569672,1705252252009,-500.0,0.00030136,2]
[311569673,1705252252019,-2501.43,0.00030136,2]
[311569674,1705252252028,-602.22,0.00030136,2]
[311569675,1705252252038,-500.0,0.00030136,2]
[311569676,1705252252047,-500.0,0.00030136,2]
[311569677,1705252252056,-500.0,0.00030136,2]
[311569678,1705252252067,-4038.49,0.00030136,2]
[311569679,1705252252078,-2052.95,0.00030136,2]
[311569680,1705252252089,-9329.65,0.00030136,2]
[311569681,1705252252100,-2046.19,0.00030136,2]
[311569682,1705252252109,-500.0,0.00030136,2]
[311569683,1705252252120,-500.0,0.00030136,2]
[311569684,1705252252129,-500.0,0.00030136,2]
[311569685,1705252252139,-5406.14,0.00030136,2]
[311569686,1705252252149,-500.0,0.00030136,2]
[311569687,1705252252159,-500.0,0.00030136,2]
[311569688,1705252252169,-500.0,0.00030136,2]
[311569689,1705252252179,-500.0,0.00030136,2]
[311569690,1705252252189,-500.0,0.00030136,2]
[311569691,1705252252198,-500.0,0.00030136,2]
[311569692,1705252252208,-6443.32,0.00030136,2]
[311569693,1705252252218,-500.0,0.00030136,2]
[311569694,1705252252228,-2591.43,0.00030136,2]
[311569695,1705252252240,-500.0,0.00030136,2]
[311569696,1705252252251,-500.0,0.00030136,2]
[311569697,1705252252261,-500.0,0.00030136,2]
[311569698,1705252252272,-500.0,0.00030136,2]
[311569699,1705252252282,-2526.32,0.00030136,2]
[311569700,1705252252292,-3495.11,0.00030136,2]
[311569701,1705252252302,-500.0,0.00030136,2]
[311569702,1705252252312,-500.0,0.00030136,2]
[311569703,1705252252323,-500.0,0.00030136,2]
[311569704,1705252252333,-488.31080762,0.00030136,2]
[311569705,1705252252343,-1152.89,0.00030136,2]
[311569706,1705252252354,-1951.59,0.00030136,2]
[311569707,1705252252364,-500.0,0.00030136,2]
[311569708,1705252252375,-1678.34,0.00030136,2]
[311569709,1705252252385,-500.0,0.00030136,2]
[311569710,1705252252394,-4453.87,0.00030136,2]
[311569711,1705252252404,-1925.55,0.00030136,2]
[311569712,1705252252414,-1018.23,0.00030136,2]
[311569713,1705252252426,-1430.39,0.00030136,2]
[311569714,1705252252436,-7026.91,0.00030136,2]
[311569715,1705252252446,-500.0,0.00030136,2]
[311569716,1705252252457,-1494.12,0.00030136,2]
[311569717,1705252252467,-858.04,0.00030136,2]
[311569718,1705252252476,-639.77,0.00030136,2]
[311569719,1705252252488,-500.0,0.00030136,2]
[311569720,1705252252498,-500.0,0.00030136,2]
[311569721,1705252252508,-3493.55,0.00030136,2]
[311569722,1705252252518,-500.0,0.00030136,2]
[311569723,1705252252527,-500.0,0.00030136,2]
[311569724,1705252252537,-500.0,0.00030136,2]
[311569725,1705252252546,-500.0,0.00030136,2]
[311569726,1705252252557,-500.0,0.00030136,2]
[311569727,1705252252568,-1678.6,0.00030136,2]
[311569728,1705252252579,-500.0,0.00030136,2]
[311569729,1705252252589,-500.0,0.00030136,2]
[311569730,1705252252600,-500.0,0.00030136,2]
[311569731,1705252252611,-539.82,0.00030136,2]
[311569732,1705252252621,-500.0,0.00030136,2]
[311569733,1705252252632,-1647.84,0.00030136,2]
[311569734,1705252252641,-534.79,0.00030136,2]
[311569735,1705252252652,-2587.79,0.00030136,2]
[311569736,1705252252663,-500.0,0.00030136,2]
[311569737,1705252252673,-4664.45,0.00030136,2]
[311569738,1705252252684,-500.0,0.00030136,2]
[311569739,1705252252694,-797.9,0.00030136,2]
[311569740,1705252252705,-1743.36,0.00030136,2]
[311569741,1705252252716,-500.0,0.00030136,2]
[311569742,1705252252729,-570.38,0.00030136,2]
[311569743,1705252252739,-500.0,0.00030136,2]
[311569744,1705252252750,-3574.89,0.00030136,2]
[311569745,1705252252761,-3210.63,0.00030136,2]
[311569746,1705252252771,-2513.83,0.00030136,2]
[311569747,1705252252782,-500.0,0.00030136,30]
[311569748,1705252252793,-500.0,0.00030136,2]
[311569749,1705252252803,-747.77,0.00030136,2]
[311569750,1705252252814,-500.0,0.00030136,2]
[311569751,1705252252824,-533.38809022,0.00030136,2]
[311569752,1705252252835,-500.0,0.00030136,2]
[311569753,1705252252845,-2062.81,0.00030136,2]
[311569754,1705252252856,-500.0,0.00030136,2]
[311569755,1705252252866,-293.30863595,0.00030136,2]
[311569756,1705252252876,-674.96,0.00030136,2]
[311569757,1705252252888,-500.0,0.00030136,2]
[311569758,1705252252901,-2377.35,0.00030136,2]
[311569759,1705252252912,-1040.49,0.00030136,2]
[311569760,1705252252921,-12144.81,0.00030136,2]
[311569761,1705252252930,-500.0,0.00030136,2]
[311569762,1705252252940,-500.0,0.00030136,2]
[311569763,1705252252950,-500.0,0.00030136,2]
[311569764,1705252252961,-500.0,0.00030136,2]
[311569765,1705252252970,-500.0,0.00030136,2]
[311569766,1705252252981,-500.0,0.00030136,2]
[311569767,1705252252990,-546.04,0.00030136,2]
[311569768,1705252253000,-7506.39,0.00030136,2]
[311569769,1705252253010,-559.01,0.00030136,2]
[311569770,1705252253021,-500.0,0.00030136,2]
[311569771,1705252253031,-749.5,0.00030136,2]
[311569772,1705252253043,-536.52,0.00030136,2]
[311569773,1705252253053,-2322.96,0.00030136,2]
[311569774,1705252253064,-2599.12,0.00030136,2]
[311569775,1705252253074,-500.77705902,0.00030136,2]
[311569776,1705252253084,-500.0,0.00030136,2]
[311569777,1705252253094,-588.11,0.00030136,2]
[311569778,1705252253104,-500.0,0.00030136,2]
[311569779,1705252253113,-500.0,0.00030136,2]
[311569780,1705252253123,-500.0,0.00030136,2]
[311569781,1705252253132,-500.0,0.00030136,2]
[311569782,1705252253142,-503.91697788,0.00030136,2]
[311569783,1705252253152,-1465.44,0.00030136,2]
[311569784,1705252253161,-500.0,0.00030136,5]
[311569785,1705252253170,-500.0,0.00030136,2]
[311569786,1705252253180,-870.13,0.00030136,2]
[311569787,1705252253190,-500.0,0.00030136,2]
[311569788,1705252253199,-6554.82,0.00030136,2]
[311569789,1705252253208,-1329.38,0.00030136,2]
[311569790,1705252253218,-500.0,0.00030136,2]
[311569791,1705252253228,-1946.34,0.00030136,2]
[311569792,1705252253239,-500.0,0.00030136,2]
[311569793,1705252253248,-500.0,0.00030136,2]
[311569794,1705252253258,-5430.89,0.00030136,2]
[311569795,1705252253267,-1136.62,0.00030136,2]
[311569796,1705252253275,-796.83,0.00030136,2]
[311569797,1705252253285,-500.0,0.00030136,2]
[311569798,1705252253294,-500.0,0.00030136,2]
[311569799,1705252253304,-61633.02,0.00030136,2]
[311569800,1705252253314,-500.0,0.00030136,2]
[311569801,1705252253324,-500.0,0.00030136,2]
[311569802,1705252253334,-500.0,0.00030136,5]
[311569803,1705252253344,-500.0,0.00030136,2]
[311569804,1705252253357,-1778.55,0.00030136,2]
[311569805,1705252253368,-1790.83,0.00030136,2]
[311569806,1705252253377,-500.0,0.00030136,2]
[311569807,1705252253387,-22604.09,0.00030136,2]
[311569808,1705252253397,-500.0,0.00030136,2]
[311569809,1705252253407,-869.55,0.00030136,2]
[311569810,1705252253418,-2356.56,0.00030136,2]
[311569811,1705252253427,-500.0,0.00030136,2]
[311569812,1705252253437,-500.0,0.00030136,2]
[311569813,1705252253447,-1980.57,0.00030136,2]
[311569814,1705252253457,-502.56867267,0.00030136,2]
[311569815,1705252253467,-4074.52,0.00030136,2]
[311569816,1705252253479,-2141.21,0.00030136,2]
[311569817,1705252253490,-902.59,0.00030136,2]
[311569818,1705252253503,-5195.33,0.00030136,2]
[311569819,1705252253516,-1229.8,0.00030136,2]
[311569820,1705252253526,-1076.46,0.00030136,2]
[311569821,1705252253535,-500.0,0.00030136,2]
[311569822,1705252253545,-1807.57,0.00030136,2]
[311569823,1705252253554,-175.92973434,0.00030136,2]
[311569824,1705252253563,-4351.31,0.00030136,2]
[311569825,1705252253572,-1715.26,0.00030136,2]
[311569826,1705252253581,-7640.79,0.00030136,2]
[311569827,1705252253591,-500.0,0.00030136,2]
[311569828,1705252253600,-500.0,0.00030136,2]
[311569829,1705252253610,-1082.75,0.00030136,2]
[311569830,1705252253619,-500.0,0.00030136,2]
[311569831,1705252253629,-592.57,0.00030136,2]
[311569832,1705252253639,-500.0,0.00030136,2]
[311569833,1705252253649,-500.0,0.00030136,2]
[311569834,1705252253658,-2984.29,0.00030136,2]
[311569835,1705252253668,-3610.33,0.00030136,2]
[311569836,1705252253677,-500.0,0.00030136,2]
[311569837,1705252253687,-1696.28,0.00030136,2]
[311569838,1705252253697,-4594.32,0.00030136,2]
[311569839,1705252253706,-4251.43,0.00030136,2]
[311569840,1705252253718,-1901.97,0.00030136,2]
[311569841,1705252253732,-22955.6,0.00030136,2]
[311569842,1705252253741,-500.0,0.00030136,2]
[311569843,1705252253751,-500.0,0.00030136,2]
[311569844,1705252253761,-904.7,0.00030136,2]
[311569845,1705252253770,-504.18318355,0.00030136,2]
[311569846,1705252253780,-1364.34,0.00030136,2]
[311569847,1705252253789,-517.44,0.00030136,2]
[311569848,1705252253799,-833.48,0.00030136,2]
[311569849,1705252253808,-500.0,0.00030136,2]
[311569850,1705252253817,-10151.79,0.00030136,2]
[311569851,1705252253827,-1054.06,0.00030136,2]
[311569852,1705252253836,-2618.39,0.00030136,2]
[311569853,1705252253845,-1158.82,0.00030136,2]
[311569854,1705252253855,-3356.05,0.00030136,2]
[311569855,1705252253865,-708.64,0.00030136,2]
[311569856,1705252253874,-500.0,0.00030136,2]
[311569857,1705252253883,-3491.81,0.00030136,2]
[311569858,1705252253893,-6306.53,0.00030136,2]
[311569859,1705252253903,-500.0,0.00030136,2]
[311569860,1705252253912,-10263.33,0.00030136,2]
[311569861,1705252253923,-522.88075233,0.00030136,2]
[311569862,1705252253932,-877.92,0.00030136,2]
[311569863,1705252253941,-836.39,0.00030136,2]
[311569864,1705252253951,-31200.17,0.00030136,2]
[311569865,1705252253961,-4436.97,0.00030136,2]
[311569866,1705252253971,-500.0,0.00030136,2]
[311569867,1705252253981,-500.0,0.00030136,2]
[311569868,1705252253991,-838.58,0.00030136,2]
[311569869,1705252254000,-500.0,0.00030136,2]
[311569870,1705252254010,-770.53,0.00030136,2]
[311569871,1705252254019,-500.0,0.00030136,2]
[311569872,1705252254029,-1471.55,0.00030136,2]
[311569873,1705252254038,-500.0,0.00030136,2]
[311569874,1705252254048,-500.0,0.00030136,2]
[311569875,1705252254057,-500.0,0.00030136,2]
[311569876,1705252254067,-500.0,0.00030136,2]
[311569877,1705252254168,-500.0,0.00030136,2]
[311569878,1705252254178,-500.0,0.00030136,2]
[311569879,1705252254187,-500.0,0.00030136,2]
[311569880,1705252254197,-500.0,0.00030136,2]
[311569881,1705252254207,-500.0,0.00030136,2]
[311569882,1705252254216,-806.68,0.00030136,2]
[311569883,1705252254226,-500.0,0.00030136,2]
[311569884,1705252254237,-500.0,0.00030136,2]
[311569885,1705252254246,-1020.34,0.00030136,2]
[311569886,1705252254259,-500.0,0.00030136,2]
[311569887,1705252254268,-1644.23,0.00030136,2]
[311569888,1705252254277,-3073.24,0.00030136,2]
[311569889,1705252254286,-1054.96,0.00030136,2]
[311569890,1705252254295,-4781.67,0.00030136,2]
[311569891,1705252254304,-1156.79,0.00030136,2]
[311569892,1705252254313,-688.61,0.00030136,2]
[311569893,1705252254322,-1129.49,0.00030136,2]
[311569894,1705252254332,-500.0,0.00030136,2]
[311569895,1705252254341,-2272.95,0.00030136,2]
[311569896,1705252254350,-1374.02,0.00030136,2]
[311569897,1705252254361,-500.0,0.00030136,2]
[311569898,1705252254370,-500.0,0.00030136,2]
[311569899,1705252254380,-500.0,0.00030136,2]
[311569900,1705252254389,-500.0,0.00030136,2]
[311569901,1705252254399,-556.57,0.00030136,2]
[311569902,1705252254408,-778.93,0.00030136,2]
[311569903,1705252254418,-3190.47,0.00030136,2]
[311569904,1705252254427,-500.0,0.00030136,2]
[311569905,1705252254436,-8213.87,0.00030136,2]
[311569906,1705252254445,-3921.23,0.00030136,2]
[311569907,1705252254455,-774.75,0.00030136,2]
[311569908,1705252254464,-500.0,0.00030136,2]
[311569909,1705252254473,-508.59251094,0.00030136,2]
[311569910,1705252254484,-1044.38,0.00030136,2]
[311569911,1705252254493,-7085.76,0.00030136,2]
[311569912,1705252254502,-546.38,0.00030136,2]
[311569913,1705252254512,-500.0,0.00030136,2]
[311569914,1705252254521,-2449.62,0.00030136,2]
[311569915,1705252254530,-638.52,0.00030136,2]
[311569916,1705252254538,-1098.94,0.00030136,2]
[311569917,1705252254547,-505.99034316,0.00030136,2]
[311569918,1705252254556,-500.0,0.00030136,2]
[311569919,1705252254565,-500.0,0.00030136,2]
[311569920,1705252254574,-5135.81,0.00030136,2]
[311569921,1705252254583,-1016.3949751,0.00030136,7]
[311569922,1705252254593,-500.0,0.00030136,2]
[311569923,1705252254602,-2460.67,0.00030136,2]
[311569924,1705252254611,-500.0,0.00030136,2]
[311569925,1705252254621,-500.0,0.00030136,2]
[311569926,1705252254631,-1336.78,0.00030136,2]
[311569927,1705252254640,-500.0,0.00030136,2]
[311569928,1705252254650,-1398.15,0.00030136,2]
[311569929,1705252254659,-500.0,0.00030136,2]
[311569930,1705252254669,-500.0,0.00030136,2]
[311569931,1705252254678,-4492.8,0.00030136,2]
[311569932,1705252254687,-500.0,0.00030136,2]
[311569933,1705252254696,-3008.57,0.00030136,2]
[311569934,1705252254706,-500.0,0.00030136,2]
[311569935,1705252254716,-500.0,0.00030136,2]
[311569936,1705252254728,-3284.46,0.00030136,2]
[311569937,1705252254738,-7685.59,0.00030136,2]
[311569938,1705252254747,-500.0,0.00030136,2]
[311569939,1705252254757,-3213.1,0.00030136,2]
[311569940,1705252254766,-500.0,0.00030136,2]
[311569941,1705252254776,-1204.64,0.00030136,2]
[311569942,1705252254785,-500.0,0.00030136,2]
[311569943,1705252254794,-573.07,0.00030136,2]
[311569944,1705252254804,-500.0,0.00030136,2]
[311569945,1705252254814,-500.0,0.00030136,2]
[311569946,1705252254823,-636.4126425,0.00030136,2]
[311569947,1705252254832,-1003.96,0.00030136,2]
[311569948,1705252254842,-1407.75,0.00030136,2]
[311569949,1705252254851,-500.0,0.00030136,2]
[311569950,1705252254861,-752.83,0.00030136,2]
[311569951,1705252254870,-1833.5,0.00030136,2]
[311569952,1705252254880,-500.0,0.00030136,2]
[311569953,1705252254889,-2365.5,0.00030136,2]
[311569954,1705252254898,-500.0,0.00030136,2]
[311569955,1705252254907,-2409.49,0.00030136,2]
[311569956,1705252254917,-500.0,0.00030136,2]
[311569957,1705252254927,-2002.36,0.00030136,2]
[311569958,1705252254936,-3127.24,0.00030136,2]
[311569959,1705252254945,-500.0,0.00030136,2]
[311569960,1705252254955,-500.0,0.00030136,2]
[311569961,1705252254965,-500.0,0.00030136,2]
[311569962,1705252254976,-1218.59,0.00030136,2]
[311569963,1705252254986,-500.0,0.00030136,2]
[311569964,1705252254995,-500.0,0.00030136,2]
[311569965,1705252255004,-500.0,0.00030136,2]
[311569966,1705252255013,-1147.15,0.00030136,2]
[311569967,1705252255022,-500.0,0.00030136,2]
[311569968,1705252255032,-500.0,0.00030136,2]
[311569969,1705252255042,-3216.13,0.00030136,2]
[311569970,1705252255051,-1139.18,0.00030136,2]
[311569971,1705252255060,-913.2,0.00030136,2]
[311569972,1705252255069,-500.0,0.00030136,2]
[311569973,1705252255078,-500.0,0.00030136,2]
[311569974,1705252255087,-2024.94,0.00030136,2]
[311569975,1705252255097,-500.0,0.00030136,2]
[311569976,1705252255106,-500.0,0.00030136,2]
[311569977,1705252255115,-500.0,0.00030136,2]
[311569978,1705252255125,-500.0,0.00030136,2]
[311569979,1705252255134,-500.56237802,0.00030136,2]
[311569980,1705252255144,-500.0,0.00030136,2]
[311569981,1705252255153,-2892.7,0.00030136,2]
[311569982,1705252255162,-1930.43,0.00030136,2]
[311569983,1705252255172,-500.0,0.00030136,2]
[311569984,1705252255181,-500.0,0.00030136,2]
[311569985,1705252255190,-1273.18,0.00030136,2]
[311569986,1705252255199,-1071.28,0.00030136,2]
[311569987,1705252255208,-1926.93,0.00030136,2]
[311569988,1705252255218,-500.0,0.00030136,2]
[311569989,1705252255227,-3972.66,0.00030136,2]
[311569990,1705252255237,-1807.54,0.00030136,2]
[311569991,1705252255245,-500.0,0.00030136,2]
[311569992,1705252255254,-7510.67,0.00030136,2]
[311569993,1705252255264,-506.05603634,0.00030136,2]
[311569994,1705252255273,-587.94,0.00030136,2]
[311569995,1705252255282,-500.0,0.00030136,2]
[311569996,1705252255291,-500.0,0.00030136,2]
[311569997,1705252255300,-41187.94,0.00030136,2]
[311569998,1705252255308,-8460.19,0.00030136,2]
[311569999,1705252255317,-500.0,0.00030136,2]
[311570000,1705252255326,-500.0,0.00030136,2]
[311570001,1705252255336,-1441.22,0.00030136,2]
[311570002,1705252255345,-500.0,0.00030136,2]
[311570003,1705252255354,-500.0,0.00030136,2]
[311570004,1705252255363,-500.0,0.00030136,2]
[311570005,1705252255372,-15734.53,0.00030136,2]
[311570006,1705252255381,-500.0,0.00030136,2]
[311570007,1705252255390,-15516.01,0.00030136,2]
[311570008,1705252255400,-3242.02,0.00030136,2]
[311570009,1705252255409,-500.0,0.00030136,2]
[311570010,1705252255419,-1119.54,0.00030136,2]
[311570011,1705252255428,-500.0,0.00030136,2]
[311570012,1705252255437,-500.0,0.00030136,2]
[311570013,1705252255447,-1320.23,0.00030136,2]
[311570014,1705252255457,-1559.92,0.00030136,2]
[311570015,1705252255466,-500.0,0.00030136,2]
[311570016,1705252255475,-500.0,0.00030136,2]
[311570017,1705252255486,-3775.7,0.00030136,2]
[311570018,1705252255495,-500.0,0.00030136,2]
[311570019,1705252255504,-500.0,0.00030136,2]
[311570020,1705252255513,-864.38,0.00030136,2]
[311570021,1705252255522,-500.0,0.00030136,2]
[311570022,1705252255531,-500.0,0.00030136,2]
[311570023,1705252255540,-500.0,0.00030136,2]
[311570024,1705252255549,-500.0,0.00030136,2]
[311570025,1705252255558,-3371.79,0.00030136,2]
[311570026,1705252255567,-588.26,0.00030136,2]
[311570027,1705252255576,-759.34,0.00030136,2]
[311570028,1705252255585,-500.0,0.00030136,2]
[311570029,1705252255595,-500.0,0.00030136,2]
[311570030,1705252255604,-947.37,0.00030136,2]
[311570031,1705252255613,-500.0,0.00030136,2]
[311570032,1705252255622,-500.0,0.00030136,2]
[311570033,1705252255632,-500.0,0.00030136,2]
[311570034,1705252255641,-4003.21,0.00030136,2]
[311570035,1705252255650,-500.0,0.00030136,2]
[311570036,1705252255659,-1017.91,0.00030136,2]
[311570037,1705252255668,-1037.88,0.00030136,2]
[311570038,1705252255677,-1446.34,0.00030136,2]
[311570039,1705252255687,-500.7665167,0.00030136,2]
[311570040,1705252255696,-1493.77,0.00030136,2]
[311570041,1705252255705,-500.0,0.00030136,2]
[311570042,1705252255715,-2318.96,0.00030136,2]
[311570043,1705252255726,-972.67,0.00030136,2]
[311570044,1705252255738,-643.64,0.00030136,2]
[311570045,1705252255747,-500.0,0.00030136,2]
[311570046,1705252255757,-500.0,0.00030136,2]
[311570047,1705252255767,-846.51,0.00030136,2]
[311570048,1705252255776,-500.0,0.00030136,2]
[311570049,1705252255787,-500.0,0.00030136,2]